fUST/lending_fUST_20240919
["ID","MTS","AMOUNT","RATE_DAILY","PERIOD"]
[338584245,1726749055341,-151.0,0.00016438,2]
[338584246,1726749055350,-151.0,0.00016438,2]
[338584247,1726749055359,-195.264061,0.00016438,2]
[338584248,1726749055368,-151.0,0.00016438,2]
[338584249,1726749055377,-151.0,0.00016438,2]
[338584250,1726749055386,-151.0,0.00016438,2]
[338584251,1726749055395,-151.0,0.00016438,2]
[338584252,1726749055405,-151.0,0.00016438,2]
[338584253,1726749055414,-500.0,0.00016473,2]
[338584254,1726749055425,-500.0,0.00016473,2]
[338584255,1726749055436,-500.0,0.00016473,2]
[338584256,1726749055447,-500.0,0.00016473,2]
[338584257,1726749055456,-500.0,0.00016473,2]
[338584258,1726749055467,-500.0,0.00016473,2]
[338584259,1726749055476,-501.15771748,0.00016473,2]
[338584260,1726749055486,-500.0,0.00016473,2]
[338584261,1726749055496,-500.88481706,0.00016473,2]
[338584262,1726749055505,-501.50815981,0.00016473,2]
[338584263,1726749055515,-500.0,0.00016473,2]
[338584264,1726749055526,-500.0,0.00016473,2]
[338584265,1726749055536,-500.0,0.00016473,2]
[338584266,1726749055546,-204.68820788,0.00016473,2]
[338584267,1726749055557,-500.20872257,0.00016473,2]
[338584268,1726749055566,-200.13184498,0.00016473,2]
[338584269,1726749055576,-261.15767013,0.00016473,2]
[338584270,1726749055586,-500.0,0.00016473,2]
[338584271,1726749055595,-500.0,0.00016473,2]
[338584272,1726749055604,-500.0,0.00016473,2]
[338584273,1726749055614,-613.36858127,0.00016473,2]
[338584274,1726749055624,-500.0,0.00016473,2]
[338584275,1726749055634,-160.90163875,0.00016473,2]
[338584276,1726749055645,-600.01786758,0.00016473,2]
[338584277,1726749055655,-500.0,0.00016473,2]
[338584278,1726749055664,-298.91044868,0.00016473,2]
[338584279,1726749055674,-500.0,0.00016473,2]
[338584280,1726749055683,-500.0,0.00016473,2]
[338584281,1726749055692,-500.0,0.00016473,2]
[338584282,1726749055702,-500.0,0.00016473,2]
[338584283,1726749055711,-500.0,0.00016473,2]
[338584284,1726749055721,-500.0,0.00016473,2]
[338584285,1726749055731,-199.67272366,0.00016473,2]
[338584286,1726749055741,-500.0,0.00016473,2]
[338584287,1726749055751,-500.0,0.00016473,2]
[338584288,1726749055761,-151.0,0.00016473,2]
[338584289,1726749055771,-151.0,0.00016473,2]
[338584290,1726749055780,-614.427804,0.00016473,2]
[338584291,1726749055792,-151.0,0.00016473,2]
[338584292,1726749055803,-614.427804,0.00016473,2]
[338584293,1726749055815,-151.0,0.00016473,2]
[338584294,1726749055827,-927.046173,0.00016473,2]
[338584295,1726749055836,-927.046173,0.00016473,2]
[338584296,1726749055847,-1000.0,0.000165,2]
[338584297,1726749055858,-2148.81871059,0.000167,2]
[338584298,1726749055867,-160.0,0.00016711,2]
[338584299,1726749055881,-151.0,0.00016712,2]
[338584300,1726749055890,-151.0,0.00016712,2]
[338584301,1726749055900,-151.0,0.00016712,2]
[338584302,1726749055910,-151.0,0.00016712,2]
[338584303,1726749055921,-273.598539,0.00016712,2]
[338584304,1726749055932,-273.598539,0.00016712,2]
[338584305,1726749055944,-273.598539,0.00016712,2]
[338584306,1726749055954,-273.598539,0.00016712,2]
[338584307,1726749055964,-273.598539,0.00016712,2]
[338584308,1726749055977,-273.598539,0.00016712,2]
[338584309,1726749055986,-273.598539,0.00016712,2]
[338584310,1726749055996,-273.598539,0.00016712,2]
[338584311,1726749056005,-273.598539,0.00016712,2]
[338584312,1726749056015,-273.598539,0.00016712,2]
[338584313,1726749056024,-151.0,0.00016712,2]
[338584314,1726749056033,-151.0,0.00016712,2]
[338584315,1726749056043,-151.0,0.00016712,2]
[338584316,1726749056052,-506.42098458,0.00016712,2]
[338584317,1726749056064,-151.0,0.00016712,2]
[338584318,1726749056073,-151.0,0.00016712,2]
[338584319,1726749056083,-500.0,0.00016712,2]
[338584320,1726749056092,-500.0,0.00016712,2]
[338584321,1726749056101,-500.0,0.00016712,2]
[338584322,1726749056110,-151.0,0.00016712,2]
[338584323,1726749056119,-151.0,0.00016712,2]
[338584324,1726749056129,-151.0,0.00016712,2]
[338584325,1726749056138,-151.0,0.00016712,2]
[338584326,1726749056147,-151.0,0.00016712,2]
[338584327,1726749056158,-500.0,0.00016712,2]
[338584328,1726749056167,-500.0,0.00016712,2]
[338584329,1726749056177,-500.0,0.00016712,2]
[338584330,1726749056186,-500.0,0.00016712,2]
[338584331,1726749056197,-500.0,0.00016712,2]
[338584332,1726749056206,-500.0,0.00016712,2]
[338584333,1726749056217,-500.0,0.00016712,2]
[338584334,1726749056226,-500.30078167,0.00016712,2]
[338584335,1726749056235,-654.78,0.00016712,2]
[338584336,1726749056246,-500.0,0.00016712,2]
[338584337,1726749056257,-492.19280841,0.00016712,2]
[338584338,1726749056267,-500.0,0.00016712,2]
[338584339,1726749056277,-500.0,0.00016712,2]
[338584340,1726749056286,-1996.198314,0.00016712,2]
[338584341,1726749056296,-1996.198314,0.00016712,2]
[338584342,1726749056308,-500.0,0.00016712,2]
[338584343,1726749056317,-1996.198314,0.00016712,2]
[338584344,1726749056326,-1996.198314,0.00016712,2]
[338584345,1726749056335,-1996.198314,0.00016712,2]
[338584346,1726749056344,-500.0,0.00016712,2]
[338584347,1726749056356,-1996.198314,0.00016712,2]
[338584348,1726749056366,-1996.198314,0.00016712,2]
[338584349,1726749056375,-500.0,0.00016712,2]
[338584350,1726749056385,-1996.198314,0.00016712,2]
[338584351,1726749056394,-1996.198314,0.00016712,2]
[338584352,1726749056403,-1013.41,0.00016712,2]
[338584353,1726749056413,-1996.198309,0.00016712,2]
[338584354,1726749056423,-500.0,0.00016712,2]
[338584355,1726749056432,-500.0,0.00016712,2]
[338584356,1726749056441,-1234.95,0.00016712,2]
[338584357,1726749056451,-1219.13,0.00016712,2]
[338584358,1726749056461,-500.0,0.00016712,2]
[338584359,1726749056471,-500.0,0.00016712,2]
[338584360,1726749056481,-583.77,0.00016712,2]
[338584361,1726749056495,-500.0,0.00016712,2]
[338584362,1726749056506,-500.0,0.00016712,2]
[338584363,1726749056516,-500.0,0.00016712,2]
[338584364,1726749056527,-574.05,0.00016712,2]
[338584365,1726749056537,-500.0,0.00016712,2]
[338584366,1726749056548,-500.0,0.00016712,2]
[338584367,1726749056560,-500.0,0.00016712,2]
[338584368,1726749056569,-500.0,0.00016712,2]
[338584369,1726749056579,-640.27,0.00016712,2]
[338584370,1726749056588,-500.0,0.00016712,2]
[338584371,1726749056597,-500.0,0.00016712,2]
[338584372,1726749056608,-500.0,0.00016712,2]
[338584373,1726749056619,-500.0,0.00016712,2]
[338584374,1726749056630,-817.77,0.00016712,2]
[338584375,1726749056640,-500.0,0.00016712,2]
[338584376,1726749056652,-1359.72,0.00016712,2]
[338584377,1726749056662,-500.0,0.00016712,2]
[338584378,1726749056672,-500.0,0.00016712,2]
[338584379,1726749056682,-500.0,0.00016712,2]
[338584380,1726749056691,-500.0,0.00016712,2]
[338584381,1726749056700,-500.0,0.00016712,2]
[338584382,1726749056710,-898.26,0.00016712,2]
[338584383,1726749056720,-1500.67,0.00016712,2]
[338584384,1726749056729,-918.96,0.00016712,2]
[338584385,1726749056738,-151.0,0.00016712,2]
[338584386,1726749056747,-151.0,0.00016712,2]
[338584387,1726749056757,-151.0,0.00016712,2]
[338584388,1726749056767,-151.0,0.00016712,2]
[338584389,1726749056776,-151.0,0.00016712,2]
[338584390,1726749056786,-151.0,0.00016712,2]
[338584391,1726749056795,-151.0,0.00016712,2]
[338584392,1726749056807,-500.0,0.00016712,2]
[338584393,1726749056816,-151.0,0.00016712,2]
[338584394,1726749056825,-215.727386,0.00016712,2]
[338584395,1726749056834,-500.0,0.00016712,2]
[338584396,1726749056843,-500.44663247,0.00016712,2]
[338584397,1726749056852,-152.20976,0.00016712,2]
[338584398,1726749056862,-152.20976,0.00016712,2]
[338584399,1726749056871,-152.20976,0.00016712,2]
[338584400,1726749056881,-487.79803321,0.00016712,2]
[338584401,1726749056890,-500.0,0.00016712,2]
[338584402,1726749056899,-152.20976,0.00016712,2]
[338584403,1726749056909,-152.20976,0.00016712,2]
[338584404,1726749056919,-152.20976,0.00016712,2]
[338584405,1726749056928,-500.0,0.00016712,2]
[338584406,1726749056937,-152.20976,0.00016712,2]
[338584407,1726749056946,-152.20976,0.00016712,2]
[338584408,1726749056955,-152.20976,0.00016712,2]
[338584409,1726749056965,-152.20976,0.00016712,2]
[338584410,1726749056977,-500.0,0.00016712,2]
[338584411,1726749056986,-1361.14,0.00016712,2]
[338584412,1726749056995,-500.0,0.00016712,2]
[338584413,1726749057005,-236.78,0.00016712,2]
[338584414,1726749057015,-500.0,0.00016712,2]
[338584415,1726749057025,-712.64,0.00016712,2]
[338584416,1726749057034,-811.64,0.00016712,2]
[338584417,1726749057044,-151.0,0.00016712,2]
[338584418,1726749057058,-500.0,0.00016712,2]
[338584419,1726749057068,-151.0,0.00016712,2]
[338584420,1726749057079,-151.0,0.00016712,2]
[338584421,1726749057089,-500.70581007,0.00016712,2]
[338584422,1726749057099,-151.0,0.00016712,2]
[338584423,1726749057110,-151.0,0.00016712,2]
[338584424,1726749057120,-500.0,0.00016712,2]
[338584425,1726749057131,-151.0,0.00016712,2]
[338584426,1726749057142,-151.0,0.00016712,2]
[338584427,1726749057154,-151.0,0.00016712,2]
[338584428,1726749057164,-151.0,0.00016712,2]
[338584429,1726749057174,-151.0,0.00016712,2]
[338584430,1726749057185,-500.0,0.00016712,2]
[338584431,1726749057196,-915.84,0.00016712,2]
[338584432,1726749057207,-675.09,0.00016712,2]
[338584433,1726749057217,-151.0,0.00016712,2]
[338584434,1726749057229,-151.0,0.00016712,2]
[338584435,1726749057239,-151.0,0.00016712,2]
[338584436,1726749057250,-225.603181,0.00016712,2]
[338584437,1726749057261,-500.0,0.00016712,2]
[338584438,1726749057274,-500.0,0.00016712,2]
[338584439,1726749057284,-500.0,0.00016712,2]
[338584440,1726749057295,-1319.92,0.00016712,2]
[338584441,1726749057311,-343.87613117,0.00016712,2]
[338584442,1726749057321,-500.0,0.00016712,2]
[338584443,1726749057331,-502.15426556,0.00016712,2]
[338584444,1726749057341,-500.0,0.00016712,2]
[338584445,1726749057350,-500.0,0.00016712,2]
[338584446,1726749057360,-706.69,0.00016712,2]
[338584447,1726749057370,-500.0,0.00016712,2]
[338584448,1726749057393,-525.31822053,0.00016712,2]
[338584449,1726749057407,-500.0,0.00016712,2]
[338584450,1726749057418,-336.24501632,0.00016712,2]
[338584451,1726749057429,-500.0,0.00016712,2]
[338584452,1726749057439,-500.0,0.00016712,2]
[338584453,1726749057451,-500.0,0.00016712,2]
[338584454,1726749057462,-500.0,0.00016712,2]
[338584455,1726749057473,-571.75,0.00016712,2]
[338584456,1726749057483,-501.606519,0.00016712,2]
[338584457,1726749057494,-585.42,0.00016712,2]
[338584458,1726749057505,-500.0,0.00016712,2]
[338584459,1726749057515,-500.0,0.00016712,2]
[338584460,1726749057527,-500.0,0.00016712,2]
[338584461,1726749057538,-501.83540582,0.00016712,2]
[338584462,1726749057551,-500.0,0.00016712,2]
[338584463,1726749057566,-500.0,0.00016712,2]
[338584464,1726749057579,-500.0,0.00016712,2]
[338584465,1726749057590,-500.0,0.00016712,2]
[338584466,1726749057602,-554.52,0.00016712,2]
[338584467,1726749057614,-1124.65,0.00016712,2]
[338584468,1726749057626,-500.0,0.00016712,2]
[338584469,1726749057636,-874.5,0.00016712,2]
[338584470,1726749057647,-500.0,0.00016712,2]
[338584471,1726749057658,-500.0,0.00016712,2]
[338584472,1726749057669,-197.80756893,0.00016712,2]
[338584473,1726749057679,-500.0,0.00016712,2]
[338584474,1726749057690,-500.0,0.00016712,2]
[338584475,1726749057701,-500.12663284,0.00016712,2]
[338584476,1726749057712,-927.41,0.00016712,2]
[338584477,1726749057722,-500.0,0.00016712,2]
[338584478,1726749057733,-151.0,0.00016712,2]
[338584479,1726749057743,-500.0,0.00016712,2]
[338584480,1726749057754,-151.0,0.00016712,2]
[338584481,1726749057765,-151.0,0.00016712,2]
[338584482,1726749057775,-151.0,0.00016712,2]
[338584483,1726749057786,-742.2,0.00016712,2]
[338584484,1726749057798,-871.25,0.00016712,2]
[338584485,1726749057813,-500.0,0.00016712,2]
[338584486,1726749057823,-500.0,0.00016712,2]
[338584487,1726749057833,-500.0,0.00016712,2]
[338584488,1726749057844,-591.06106447,0.00016712,2]
[338584489,1726749057854,-500.0,0.00016712,2]
[338584490,1726749057865,-500.0,0.00016712,2]
[338584491,1726749057875,-500.0,0.00016712,2]
[338584492,1726749057886,-500.0,0.00016712,2]
[338584493,1726749057897,-500.0,0.00016712,2]
[338584494,1726749057907,-500.0,0.00016712,2]
[338584495,1726749057917,-500.0,0.00016712,2]
[338584496,1726749057926,-500.0,0.00016712,2]
[338584497,1726749057937,-500.0,0.00016712,2]
[338584498,1726749057947,-253.30135215,0.00016712,2]
[338584499,1726749057957,-807.47,0.00016712,2]
[338584500,1726749057968,-172.03,0.00016712,2]
[338584501,1726749057979,-500.0,0.00016712,2]
[338584502,1726749057990,-315.86501001,0.00016712,2]
[338584503,1726749058000,-500.0,0.00016712,2]
[338584504,1726749058011,-500.0,0.00016712,2]
[338584505,1726749058021,-500.0,0.00016712,2]
[338584506,1726749058031,-500.55173385,0.00016712,2]
[338584507,1726749058041,-500.0,0.00016712,2]
[338584508,1726749058051,-500.0,0.00016712,2]
[338584509,1726749058065,-500.0,0.00016712,2]
[338584510,1726749058075,-500.0,0.00016712,2]
[338584511,1726749058085,-564.23070744,0.00016712,2]
[338584512,1726749058095,-539.28773051,0.00016712,2]
[338584513,1726749058105,-500.0,0.00016712,2]
[338584514,1726749058115,-790.72,0.00016712,2]
[338584515,1726749058125,-290.565498,0.00016712,2]
[338584516,1726749058136,-500.0,0.00016712,2]
[338584517,1726749058146,-500.61754729,0.00016712,2]
[338584518,1726749058156,-290.565498,0.00016712,2]
[338584519,1726749058166,-290.565498,0.00016712,2]
[338584520,1726749058177,-290.565498,0.00016712,2]
[338584521,1726749058187,-290.565498,0.00016712,2]
[338584522,1726749058198,-290.565502,0.00016712,2]
[338584523,1726749058208,-500.0,0.00016712,2]
[338584524,1726749058218,-1550.04,0.00016712,2]
[338584525,1726749058229,-500.0,0.00016712,2]
[338584526,1726749058239,-500.0,0.00016712,2]
[338584527,1726749058250,-500.0,0.00016712,2]
[338584528,1726749058260,-1722.19,0.00016712,2]
[338584529,1726749058269,-415.07825703,0.00016712,2]
[338584530,1726749058279,-519.87,0.00016712,2]
[338584531,1726749058289,-151.0,0.00016712,2]
[338584532,1726749058300,-500.0,0.00016712,2]
[338584533,1726749058312,-151.0,0.00016712,2]
[338584534,1726749058323,-151.0,0.00016712,2]
[338584535,1726749058333,-151.0,0.00016712,2]
[338584536,1726749058343,-269.725879,0.00016712,2]
[338584537,1726749058353,-814.67,0.00016712,2]
[338584538,1726749058364,-500.0,0.00016712,2]
[338584539,1726749058374,-500.0,0.00016712,2]
[338584540,1726749058384,-500.0,0.00016712,2]
[338584541,1726749058394,-500.0,0.00016712,2]
[338584542,1726749058404,-500.0,0.00016712,2]
[338584543,1726749058413,-500.0,0.00016712,2]
[338584544,1726749058424,-559.86,0.00016712,2]
[338584545,1726749058434,-500.0,0.00016712,2]
[338584546,1726749058444,-307.16368999,0.00016712,2]
[338584547,1726749058454,-500.0,0.00016712,2]
[338584548,1726749058465,-500.0,0.00016712,2]
[338584549,1726749058475,-500.0,0.00016712,2]
[338584550,1726749058486,-500.0,0.00016712,2]
[338584551,1726749058496,-500.0,0.00016712,2]
[338584552,1726749058507,-500.0,0.00016712,2]
[338584553,1726749058517,-500.0,0.00016712,2]
[338584554,1726749058527,-500.0,0.00016712,2]
[338584555,1726749058538,-654.99,0.00016712,2]
[338584556,1726749058548,-500.0,0.00016712,2]
[338584557,1726749058560,-500.0,0.00016712,2]
[338584558,1726749058574,-730.64,0.00016712,2]
[338584559,1726749058584,-173.66,0.00016712,2]
[338584560,1726749058595,-500.0,0.00016712,2]
[338584561,1726749058605,-500.0,0.00016712,2]
[338584562,1726749058615,-500.0,0.00016712,2]
[338584563,1726749058626,-500.0,0.00016712,2]
[338584564,1726749058636,-500.0,0.00016712,2]
[338584565,1726749058646,-500.0,0.00016712,2]
[338584566,1726749058656,-500.0,0.00016712,2]
[338584567,1726749058667,-500.0,0.00016712,2]
[338584568,1726749058677,-1642.34,0.00016712,2]
[338584569,1726749058688,-500.0,0.00016712,2]
[338584570,1726749058699,-151.0,0.00016712,2]
[338584571,1726749058710,-500.0,0.00016712,2]
[338584572,1726749058721,-151.0,0.00016712,2]
[338584573,1726749058732,-500.0,0.00016712,2]
[338584574,1726749058742,-151.0,0.00016712,2]
[338584575,1726749058752,-151.0,0.00016712,2]
[338584576,1726749058762,-500.0,0.00016712,2]
[338584577,1726749058772,-151.0,0.00016712,2]
[338584578,1726749058782,-151.0,0.00016712,2]
[338584579,1726749058792,-500.0,0.00016712,2]
[338584580,1726749058804,-657.8,0.00016712,2]
[338584581,1726749058821,-500.0,0.00016712,2]
[338584582,1726749058831,-930.64,0.00016712,2]
[338584583,1726749058841,-500.0,0.00016712,2]
[338584584,1726749058853,-500.0,0.00016712,2]
[338584585,1726749058862,-500.0,0.00016712,2]
[338584586,1726749058872,-3229.684567,0.00016712,2]
[338584587,1726749058882,-2844.0493726,0.00016712,2]
[338584588,1726749059594,-385.6351944,0.00016712,2]
[338584589,1726749059604,-3229.684567,0.00016712,2]
[338584590,1726749059613,-3229.684567,0.00016712,2]
[338584591,1726749059624,-155.935917,0.00016712,2]
[338584592,1726749059633,-3229.684564,0.00016712,2]
[338584593,1726749059643,-155.935917,0.00016712,2]
[338584594,1726749059653,-155.935917,0.00016712,2]
[338584595,1726749059663,-155.935917,0.00016712,2]
[338584596,1726749059672,-500.0,0.00016712,2]
[338584597,1726749059681,-155.935917,0.00016712,2]
[338584598,1726749059691,-500.0,0.00016712,2]
[338584599,1726749059701,-1124.74,0.00016712,2]
[338584600,1726749059711,-526.4,0.00016712,2]
[338584601,1726749059721,-500.0,0.00016712,2]
[338584602,1726749059732,-155.935917,0.00016712,2]
[338584603,1726749059742,-155.935917,0.00016712,2]
[338584604,1726749059752,-2617.54,0.00016712,2]
[338584605,1726749059761,-155.935917,0.00016712,2]
[338584606,1726749059771,-261.257808,0.00016712,2]
[338584607,1726749059782,-155.935917,0.00016712,2]
[338584608,1726749059791,-261.257808,0.00016712,2]
[338584609,1726749059803,-155.935916,0.00016712,2]
[338584610,1726749059814,-261.257808,0.00016712,2]
[338584611,1726749059825,-261.257808,0.00016712,2]
[338584612,1726749059836,-261.257808,0.00016712,2]
[338584613,1726749059847,-641.74,0.00016712,2]
[338584614,1726749059857,-261.257808,0.00016712,2]
[338584615,1726749059867,-261.257808,0.00016712,2]
[338584616,1726749059877,-261.257808,0.00016712,2]
[338584617,1726749059886,-261.257808,0.00016712,2]
[338584618,1726749059895,-261.257799,0.00016712,2]
[338584619,1726749059905,-161.260964,0.00016712,2]
[338584620,1726749059914,-161.260964,0.00016712,2]
[338584621,1726749059924,-161.260964,0.00016712,2]
[338584622,1726749059933,-161.260964,0.00016712,2]
[338584623,1726749059943,-161.260964,0.00016712,2]
[338584624,1726749059953,-500.0,0.00016712,2]
[338584625,1726749059962,-161.260964,0.00016712,2]
[338584626,1726749059973,-774.91,0.00016712,2]
[338584627,1726749059987,-500.0,0.00016712,2]
[338584628,1726749059997,-161.260964,0.00016712,2]
[338584629,1726749060007,-161.260964,0.00016712,2]
[338584630,1726749060020,-161.260964,0.00016712,2]
[338584631,1726749060030,-550.50159571,0.00016712,2]
[338584632,1726749060041,-161.260964,0.00016712,2]
[338584633,1726749060052,-161.260964,0.00016712,2]
[338584634,1726749060063,-823.61,0.00016712,2]
[338584635,1726749060074,-161.260974,0.00016712,2]
[338584636,1726749060083,-850.95,0.00016712,2]
[338584637,1726749060093,-665.83,0.00016712,2]
[338584638,1726749060103,-500.0,0.00016712,2]
[338584639,1726749060112,-500.0,0.00016712,2]
[338584640,1726749060122,-500.0,0.00016712,2]
[338584641,1726749060132,-500.0,0.00016712,2]
[338584642,1726749060143,-500.0,0.00016712,2]
[338584643,1726749060154,-500.0,0.00016712,2]
[338584644,1726749060164,-500.0,0.00016712,2]
[338584645,1726749060173,-500.0,0.00016712,2]
[338584646,1726749060183,-158.17292077,0.00016712,2]
[338584647,1726749060192,-500.0,0.00016712,2]
[338584648,1726749060202,-858.28,0.00016712,2]
[338584649,1726749060212,-759.33,0.00016712,2]
[338584650,1726749060222,-500.0,0.00016712,2]
[338584651,1726749060231,-500.0,0.00016712,2]
[338584652,1726749060242,-1964.92,0.00016712,2]
[338584653,1726749060253,-206.19624713,0.00016712,2]
[338584654,1726749060263,-1067.09,0.00016712,2]
[338584655,1726749060273,-500.0,0.00016712,2]
[338584656,1726749060282,-500.0,0.00016712,2]
[338584657,1726749060292,-951.2,0.00016712,2]
[338584658,1726749060301,-511.06,0.00016712,2]
[338584659,1726749060316,-523.19648503,0.00016712,2]
[338584660,1726749060477,-1974.89999769,0.00016428,2]
[338584661,1726749060490,-379.80248931,0.00016428,2]
[338584662,1726749060503,-2354.702487,0.00016438,2]
[338584663,1726749060513,-2354.702487,0.00016438,2]
[338584664,1726749060524,-2354.702487,0.00016438,2]
[338584665,1726749060535,-2354.702487,0.00016438,2]
[338584666,1726749060544,-500.0,0.00016473,2]
[338584667,1726749060555,-93.55211055,0.00016712,2]
[338584668,1726749060572,-151.0,0.00016712,2]
[338584669,1726749060582,-151.0,0.00016712,2]
[338584670,1726749060592,-500.0,0.00016712,2]
[338584671,1726749060602,-151.0,0.00016712,2]
[338584672,1726749060611,-156.166241,0.00016712,2]
[338584673,1726749060620,-578.06,0.00016712,2]
[338584674,1726749060630,-1202.76,0.00016712,2]
[338584675,1726749060640,-500.0,0.00016712,2]
[338584676,1726749060650,-500.0,0.00016712,2]
[338584677,1726749060659,-500.0,0.00016712,2]
[338584678,1726749060670,-833.37,0.00016712,2]
[338584679,1726749060680,-484.77383694,0.00016712,2]
[338584680,1726749060691,-1399.18,0.00016712,2]
[338584681,1726749060702,-1291.12,0.00016712,2]
[338584682,1726749060713,-596.05,0.00016712,2]
[338584683,1726749060722,-926.87,0.00016712,2]
[338584684,1726749060731,-151.0,0.00016712,2]
[338584685,1726749060741,-151.0,0.00016712,2]
[338584686,1726749060752,-151.0,0.00016712,2]
[338584687,1726749060762,-151.0,0.00016712,2]
[338584688,1726749060772,-1725.68,0.00016712,2]
[338584689,1726749060782,-980.66,0.00016712,2]
[338584690,1726749060791,-151.0,0.00016712,2]
[338584691,1726749060801,-500.0,0.00016712,2]
[338584692,1726749060815,-500.0,0.00016712,2]
[338584693,1726749060825,-1033.55,0.00016712,2]
[338584694,1726749060833,-573.73,0.00016712,2]
[338584695,1726749060843,-774.31,0.00016712,2]
[338584696,1726749060852,-500.0,0.00016712,2]
[338584697,1726749060861,-500.0,0.00016712,2]
[338584698,1726749060870,-500.0,0.00016712,2]
[338584699,1726749060880,-500.0,0.00016712,2]
[338584700,1726749060889,-1013.09,0.00016712,2]
[338584701,1726749060898,-500.0,0.00016712,2]
[338584702,1726749060908,-500.0,0.00016712,2]
[338584703,1726749060918,-1414.94,0.00016712,2]
[338584704,1726749060928,-500.0,0.00016712,2]
[338584705,1726749060939,-963.65,0.00016712,2]
[338584706,1726749060949,-500.0,0.00016712,2]
[338584707,1726749060959,-188.724558,0.00016712,2]
[338584708,1726749060968,-188.724558,0.00016712,2]
[338584709,1726749060979,-539.67,0.00016712,2]
[338584710,1726749060991,-188.724558,0.00016712,2]
[338584711,1726749061003,-188.724558,0.00016712,2]
[338584712,1726749061014,-188.724558,0.00016712,2]
[338584713,1726749061023,-188.724558,0.00016712,2]
[338584714,1726749061033,-408.32711003,0.00016712,2]
[338584715,1726749061044,-188.724558,0.00016712,2]
[338584716,1726749061057,-500.0,0.00016712,2]
[338584717,1726749061068,-188.724558,0.00016712,2]
[338584718,1726749061077,-1374.94,0.00016712,2]
[338584719,1726749061088,-188.724558,0.00016712,2]
[338584720,1726749061098,-500.0,0.00016712,2]
[338584721,1726749061107,-188.72455,0.00016712,2]
[338584722,1726749061119,-679.67,0.00016712,2]
[338584723,1726749061131,-500.0,0.00016712,2]
[338584724,1726749061141,-500.0,0.00016712,2]
[338584725,1726749061152,-255.88240982,0.00016712,2]
[338584726,1726749061161,-500.0,0.00016712,2]
[338584727,1726749061172,-500.0,0.00016712,2]
[338584728,1726749061184,-851.64,0.00016712,2]
[338584729,1726749061194,-809.14,0.00016712,2]
[338584730,1726749061203,-500.0,0.00016712,2]
[338584731,1726749061213,-500.0,0.00016712,2]
[338584732,1726749061223,-1469.67,0.00016712,2]
[338584733,1726749061232,-500.0,0.00016712,2]
[338584734,1726749061241,-727.98,0.00016712,2]
[338584735,1726749061251,-505.93586993,0.00016712,2]
[338584736,1726749061260,-500.0,0.00016712,2]
[338584737,1726749061269,-500.0,0.00016712,2]
[338584738,1726749061279,-500.0,0.00016712,2]
[338584739,1726749061288,-508.5,0.00016712,2]
[338584740,1726749061298,-500.0,0.00016712,2]
[338584741,1726749061310,-151.0,0.00016712,2]
[338584742,1726749061320,-265.673186,0.00016712,2]
[338584743,1726749061331,-946.52,0.00016712,2]
[338584744,1726749061341,-1958.32,0.00016712,2]